bitfinex-derivatives/quotes_ETHF0:USTF0_20220106
["timestamp","ask_amount","ask_price","bid_price","bid_amount"]
[1641510706352,0.153218,3415.7,3415.5,2.31281799]
[1641510708058,0.153218,3415.7,3415.5,2.77279999]
[1641510708254,0.153218,3415.7,3415.5,2.30811119]
[1641510708454,0.153218,3415.7,3415.5,1.84812919]
[1641510708656,3.1332518,3415.8,3415.6,0.397182]
[1641510709054,3.1332518,3415.8,3415.7,0.459982]
[1641510709255,3.1332518,3415.8,3415.6,0.397182]
[1641510709455,3.1332518,3415.8,3415.6,0.8618708]
[1641510710057,3.1332518,3415.8,3415.7,0.459982]
[1641510710257,3.1332518,3415.8,3415.7,0.4646888]
[1641510711058,3.2864698,3415.8,3415.7,0.4646888]
[1641510711459,3.1332518,3415.8,3415.7,0.4646888]
[1641510711860,3.1332518,3415.8,3415.7,0.9246708]
[1641510712062,1.6695987,3415.8,3415.7,0.9246708]
[1641510712261,0.2059456,3415.8,3415.7,0.9246708]
[1641510712962,0.3591636,3415.8,3415.5,1.84812919]
[1641510713163,0.3591636,3415.8,3415.6,0.459982]
[1641510713164,0.2059456,3415.8,3415.6,0.459982]
[1641510713764,2.00479,3415.9,3415.7,0.397182]
[1641510714264,2.00479,3415.9,3415.8,0.459982]
[1641510714664,2.00479,3415.9,3415.8,1.7540364]
[1641510714865,2.00479,3416.6,3415.8,1.7540364]
[1641510715068,2.00479,3416.6,3415.9,0.397182]
[1641510715666,2.00479,3416.6,3416.0,0.384472]
[1641510715866,1.46336609,3416.5,3416.1,0.397182]
[1641510716066,2.9267273,3416.5,3416.1,0.397182]
[1641510716267,0.2059456,3416.4,3416.1,0.397182]
[1641510716467,0.2059456,3416.4,3416.2,0.459982]
[1641510716866,0.2059456,3416.4,3416.3,0.397182]
[1641510717968,0.3591636,3416.4,3416.3,0.397182]
[1641510718568,0.2059456,3416.4,3416.3,0.857164]
[1641510718767,0.2059456,3416.4,3416.3,0.397182]
[1641510718768,0.3591636,3416.4,3416.3,0.397182]
[1641510719168,0.2059456,3416.4,3416.3,0.397182]
[1641510719568,0.3591636,3416.4,3416.3,0.397182]
[1641510719769,0.2059456,3416.4,3415.7,2.00479]
[1641510719969,0.8484,3416.4,3415.7,2.401972]
[1641510720173,0.2059456,3416.2,3415.7,2.401972]
[1641510720868,0.8484,3416.4,3415.7,2.401972]
[1641510721070,0.2059456,3415.8,3415.7,2.401972]
[1641510721268,0.2059456,3415.8,3415.7,2.464772]
[1641510722169,0.8484,3416.4,3415.7,2.464772]
[1641510722369,0.2059456,3416.2,3415.7,2.464772]
[1641510722571,0.2059456,3416.2,3415.7,2.00479]
[1641510722870,0.8484,3416.4,3415.7,2.00479]
[1641510723069,0.2059456,3416.2,3415.7,2.00479]
[1641510723671,0.2059456,3416.2,3415.8,0.397182]
[1641510724171,0.6031276,3416.2,3415.7,0.93827177]
[1641510724372,0.52542607,3415.7,3415.6,0.781654]
[1641510724570,0.67864407,3415.7,3415.6,0.397182]
[1641510724772,2.6079176,3416.2,3415.6,0.397182]
[1641510725573,2.6079176,3416.2,3415.5,0.384472]
[1641510726474,1.46354288,3416.1,3415.6,0.397182]
[1641510726674,2.92708576,3416.1,3415.6,0.397182]
[1641510726875,0.2059456,3415.7,3415.1,2.00479]
[1641510727076,0.2059456,3415.7,3415.2,0.397182]
[1641510727479,0.2059456,3415.7,3415.2,0.781654]
[1641510728677,0.397182,3415.6,3415.2,0.781654]
[1641510728979,0.397182,3415.6,3415.1,2.00479]
[1641510729579,0.397182,3415.6,3415.2,0.13141646]
[1641510729778,0.2059456,3415.7,3415.1,4.0804984]
[1641510729779,1.46379451,3415.5,3415.1,4.0804984]
[1641510729980,1.46379451,3415.5,3415.1,3.6833164]
[1641510730179,1.46379451,3415.5,3415.1,2.389262]
[1641510730379,0.2059456,3415.7,3415.2,0.5285938]
[1641510730779,0.2059456,3415.7,3415.5,2.00479]
[1641510730979,0.2059456,3415.7,3415.6,0.459982]
[1641510733285,0.2059456,3415.7,3415.5,2.00479]
[1641510733684,0.397182,3415.6,3415.5,2.00479]
[1641510734685,0.397182,3415.6,3415.5,2.464772]
[1641510735588,0.2059456,3415.7,3415.5,2.464772]
[1641510738091,0.2059456,3415.7,3415.6,0.397182]
[1641510739990,1.46355456,3416.0,3415.6,0.397182]
[1641510740591,2.2107356,3416.2,3415.6,0.397182]
[1641510741193,2.2107356,3416.2,3415.7,0.13142767]
[1641510741392,2.2107356,3416.2,3415.5,2.00479]
[1641510741592,2.2107356,3416.2,3415.7,1.20103742]
[1641510742195,2.2107356,3416.2,3415.8,0.397182]
[1641510743400,0.2059456,3416.2,3415.8,0.397182]
[1641510744000,1.46334896,3416.5,3415.9,0.1314682]
[1641510744199,2.00479,3416.6,3416.0,0.397182]
[1641510745203,2.00479,3416.6,3416.1,0.46464186]
[1641510745400,2.00479,3416.6,3416.2,0.397182]
[1641510745401,1.67663164,3416.6,3416.2,0.397182]
[1641510745801,1.67663164,3416.6,3416.1,0.46464186]
[1641510746006,2.35133164,3416.6,3416.1,0.46464186]
[1641510746402,2.35133164,3416.6,3416.3,0.46464186]
[1641510746603,0.153218,3416.5,3416.3,0.46464186]
[1641510747204,0.2059456,3416.4,3416.3,0.46464186]
[1641510747704,0.57698635,3416.4,3416.1,0.46464186]
[1641510748105,0.153218,3416.3,3416.1,0.46464186]
[1641510748906,0.153218,3416.3,3416.0,0.46464186]
[1641510749106,0.96862375,3416.5,3416.1,0.459982]
[1641510749509,0.2059456,3416.2,3416.1,0.459982]
[1641510749708,1.17456935,3416.5,3416.2,0.13166573]
[1641510749907,1.46340892,3416.4,3416.2,0.13166573]
[1641510750107,2.92681784,3416.4,3416.3,0.459982]
[1641510750308,2.92681784,3416.4,3416.2,0.46464186]
[1641510750507,0.2059456,3416.5,3416.3,0.384472]
[1641510750908,0.2059456,3416.5,3416.2,0.46464186]
[1641510751312,0.153218,3416.4,3416.2,0.46464186]
[1641510751509,0.2059456,3416.3,3416.2,0.46464186]
[1641510752309,0.3591636,3416.3,3416.2,0.46464186]
[1641510752611,0.3591636,3416.3,3416.2,0.59653106]
[1641510753210,0.2059456,3416.3,3416.2,0.59653106]
[1641510753411,0.2059456,3416.3,3416.2,1.05651306]
[1641510758017,0.3591636,3416.3,3416.2,0.59653106]
[1641510759522,0.2059456,3416.3,3416.2,0.59653106]
[1641510759920,0.3591636,3416.3,3416.2,0.59653106]
[1641510760321,0.2059456,3416.3,3416.2,0.59653106]
[1641510760722,0.2059456,3416.3,3416.2,1.05651306]
[1641510761424,0.3591636,3416.3,3416.2,0.59653106]
[1641510762126,0.2059456,3416.3,3416.2,1.05651306]
[1641510764331,4.54056751,3416.7,3416.2,1.05651306]
[1641510764332,4.10111311,3416.7,3416.2,1.05651306]
[1641510764627,4.10111311,3416.7,3416.5,1.2940544]
[1641510764830,4.10111311,3416.7,3416.6,0.459982]
[1641510765030,2.63784123,3416.7,3416.6,0.9890532]
[1641510765228,0.96862375,3416.7,3416.6,2.9938432]
[1641510765428,1.17456935,3416.7,3416.6,2.9938432]
[1641510766028,1.17456935,3416.7,3416.6,3.45848506]
[1641510766229,0.2059456,3416.7,3416.6,3.45848506]
[1641510768832,0.2059456,3416.7,3416.6,2.99850306]
[1641510769235,0.2059456,3416.7,3416.6,2.60132106]
[1641510769438,0.2059456,3416.7,3416.6,0.59653106]
[1641510769637,0.2059456,3416.7,3416.6,0.46464186]
[1641510769839,0.3591636,3416.7,3416.6,0.46464186]
[1641510770838,0.3591636,3416.7,3416.4,0.46464186]
[1641510771038,0.153218,3416.7,3416.4,0.46464186]
[1641510771240,0.3591636,3416.7,3416.4,0.46464186]
[1641510771638,0.2059456,3416.5,3416.4,0.46464186]
[1641510772039,0.3591636,3416.5,3416.4,0.46464186]
[1641510772239,2.92647096,3416.8,3416.4,0.459982]
[1641510772441,0.2059456,3416.7,3416.5,1.6912364]
[1641510772640,0.96862375,3417.0,3416.5,1.6912364]
[1641510772842,0.96862375,3417.0,3416.6,4.683018]
[1641510773042,0.96862375,3417.0,3416.7,0.781654]
[1641510773242,0.96862375,3417.0,3416.8,2.464772]
[1641510773442,0.2059456,3417.3,3416.8,2.59665806]
[1641510773642,0.2059456,3417.3,3416.9,0.397182]
[1641510773842,0.2059456,3417.3,3416.9,1.20106806]
[1641510774042,0.2059456,3417.3,3417.0,0.13188606]
[1641510774244,0.153218,3417.2,3417.0,0.13188606]
[1641510774645,0.2059456,3417.3,3417.1,0.857164]
[1641510774946,0.2059456,3417.3,3417.1,0.397182]
[1641510775143,0.153218,3417.2,3417.1,0.397182]
[1641510775345,0.2059456,3417.3,3417.1,0.397182]
[1641510775543,0.2059456,3417.3,3417.2,0.459982]
[1641510775743,2.43149941,3417.6,3417.2,0.459982]
[1641510775945,0.96862375,3417.6,3417.3,0.397182]
[1641510776143,0.96862375,3417.6,3417.3,0.52896001]
[1641510776443,0.96862375,3417.6,3417.4,5.526307]
[1641510776643,1.17456935,3417.6,3417.5,0.397182]
[1641510776843,1.17456935,3417.6,3417.4,0.51625001]
[1641510777043,1.17456935,3417.6,3417.1,0.46464186]
[1641510777244,1.17456935,3417.6,3417.2,2.00479]
[1641510777644,1.17456935,3417.6,3417.4,0.46464186]
[1641510777844,0.2059456,3417.6,3417.4,0.46464186]
[1641510778043,0.153218,3417.5,3417.4,0.46464186]
[1641510778250,0.153218,3417.5,3417.4,0.92462386]
[1641510778443,1.46284377,3417.7,3417.4,0.92462386]
[1641510778644,0.2059456,3418.0,3417.4,0.92462386]
[1641510778844,0.2059456,3418.0,3417.5,0.397182]
[1641510779144,0.96862375,3417.8,3417.5,0.397182]
[1641510779343,0.153218,3417.7,3417.5,0.397182]
[1641510780745,0.96862375,3417.8,3417.6,0.46464186]
[1641510780947,0.96862375,3417.8,3417.7,0.397182]
[1641510781346,0.96862375,3417.8,3417.7,1.13995703]
[1641510781545,0.96862375,3417.8,3417.7,1.59993903]
[1641510781946,1.12184175,3417.8,3417.7,1.13995703]
[1641510782146,1.12184175,3417.8,3417.7,1.60459889]
[1641510783047,1.12184175,3417.8,3417.7,0.86182386]
[1641510783450,0.153218,3417.8,3417.7,0.86182386]
[1641510784048,2.00479,3417.9,3417.7,1.32180586]
[1641510784447,2.00479,3417.9,3417.7,0.857164]
[1641510785049,3.46737167,3418.3,3417.8,1.2940544]
[1641510785250,3.46737167,3418.3,3417.9,0.781654]
[1641510785450,3.17935935,3418.7,3417.9,0.781654]
[1641510785650,3.17935935,3418.7,3418.0,4.680963]
[1641510785651,2.97341375,3418.7,3418.0,4.680963]
[1641510785850,2.97341375,3418.7,3418.1,0.397182]
[1641510786251,2.00479,3418.7,3418.2,4.680552]
[1641510786554,0.2059456,3418.5,3418.2,4.680552]
[1641510786752,0.2059456,3418.5,3418.3,0.397182]
[1641510786955,0.2059456,3418.5,3418.4,0.459982]
[1641510787154,2.00479,3418.7,3418.4,0.459982]
[1641510787354,0.2059456,3418.5,3418.4,0.459982]
[1641510787653,0.2059456,3418.5,3418.4,0.857164]
[1641510787852,0.2059456,3418.5,3417.8,2.0122544]
[1641510787853,0.2059456,3418.5,3417.8,0.7182]
[1641510788053,0.2059456,3417.9,3417.7,0.95002377]
[1641510788253,0.2059456,3417.9,3417.7,0.459982]
[1641510788655,0.153218,3417.8,3417.6,3.12846635]
[1641510788854,0.2059456,3417.9,3417.6,3.12846635]
[1641510789154,1.5,3418.4,3417.6,3.12846635]
[1641510789354,2.00479,3418.3,3417.7,0.857164]
[1641510789555,0.2059456,3417.8,3417.7,0.857164]
[1641510789755,0.3591636,3417.8,3417.7,0.397182]
[1641510789957,0.2059456,3417.8,3417.7,0.397182]
[1641510790157,0.2059456,3417.9,3417.7,0.397182]
[1641510790356,0.2059456,3417.9,3417.7,0.857164]
[1641510792560,0.2059456,3417.9,3417.8,0.459982]
[1641510794961,2.00479,3418.3,3417.8,5.141287]
[1641510795164,2.00479,3418.3,3417.9,0.397182]
[1641510796065,0.2059456,3418.6,3417.9,0.397182]
[1641510796264,2.00479,3418.7,3417.9,0.397182]
[1641510796665,2.00479,3418.7,3418.0,4.680757]
[1641510796866,2.00479,3418.7,3418.1,0.397182]
[1641510797268,2.2107356,3418.7,3418.1,0.397182]
[1641510798868,2.00479,3418.7,3418.1,0.397182]
[1641510799069,0.2059456,3418.6,3418.1,0.397182]
[1641510800273,0.2059456,3418.2,3418.1,0.397182]
[1641510800470,0.2059456,3418.2,3418.1,0.857164]
[1641510801472,0.2059456,3418.5,3418.1,0.857164]
[1641510802071,2.00479,3418.7,3418.1,0.857164]
[1641510802781,0.2059456,3418.2,3418.1,0.857164]
[1641510802973,2.00479,3418.7,3418.1,0.857164]
[1641510803172,2.2107356,3418.7,3418.1,0.857164]
[1641510804777,2.00479,3418.7,3418.1,0.857164]
[1641510804975,0.2059456,3418.2,3418.1,0.857164]
[1641510805276,0.3591636,3418.2,3417.7,0.384472]
[1641510805473,0.881318,3418.2,3417.7,0.384472]
[1641510805676,0.2059456,3417.8,3417.7,0.384472]
[1641510805876,0.2059456,3417.8,3417.7,0.844454]
[1641510809281,0.2059456,3417.8,3417.7,1.241636]
[1641510809883,0.2059456,3417.8,3417.7,5.923078]
[1641510810383,2.00479,3418.7,3417.7,5.923078]
[1641510810983,0.2059456,3418.0,3417.7,5.923078]
[1641510811183,0.2059456,3418.3,3417.7,5.923078]
[1641510811384,2.00479,3418.7,3417.7,5.923078]
[1641510812988,0.2059456,3417.8,3417.7,5.923078]
[1641510815591,2.00479,3418.7,3417.7,5.923078]
[1641510815789,0.2059456,3418.5,3417.7,7.2171324]
[1641510815989,2.43101827,3418.8,3418.4,1.2940544]
[1641510816190,0.96862375,3418.8,3418.5,4.781654]
[1641510816389,0.96862375,3418.8,3418.6,0.459982]
[1641510816591,0.96862375,3418.8,3418.7,0.397182]
[1641510816790,3.21556969,3419.1,3418.7,5.077323]
[1641510816989,3.21556969,3419.1,3418.8,1.2940544]
[1641510817189,2.00479,3419.1,3418.9,0.857164]
[1641510817391,2.00479,3419.1,3418.9,5.536963]
[1641510817590,0.97305123,3419.3,3418.9,5.536963]
[1641510818391,0.97305123,3419.3,3418.9,8.2920936]
[1641510818590,0.2059456,3419.4,3418.9,8.2920936]
[1641510818891,0.2059456,3419.4,3419.1,0.74113298]
[1641510819090,0.2059456,3419.4,3419.2,1.241636]
[1641510819290,0.2059456,3419.4,3419.2,5.921024]
[1641510820394,0.2059456,3419.4,3419.3,1.20555715]
[1641510821092,2.87850843,3420.2,3419.3,1.75025715]
[1641510821296,2.67256283,3420.2,3419.7,1.2940544]
[1641510821491,0.61904646,3420.2,3420.1,2.75461204]
[1641510821694,0.61904646,3420.2,3420.1,4.35206604]
[1641510821890,0.61904646,3420.2,3420.1,9.42740504]
[1641510822090,4.646e-05,3420.2,3420.1,10.88212145]
[1641510823593,0.2059456,3420.9,3420.1,10.88212145]
[1641510823793,0.2059456,3420.9,3420.4,1.2940544]
[1641510823993,0.2059456,3420.9,3420.5,0.397182]
[1641510824193,0.2059456,3420.9,3420.5,5.074655]
[1641510825094,0.35283284,3420.8,3420.5,5.074655]
[1641510825298,0.35283284,3420.8,3420.6,0.459982]
[1641510825493,0.35283284,3420.8,3420.7,0.397182]
[1641510825694,0.35283284,3420.8,3420.7,7.079377]
[1641510825901,0.55877844,3420.8,3420.7,7.079377]
[1641510827197,0.55877844,3420.8,3420.7,2.401972]
[1641510827797,0.71199644,3420.8,3420.7,2.00479]
[1641510828598,0.35283284,3420.8,3420.7,2.464772]
[1641510828801,0.35283284,3420.8,3420.7,2.00479]
[1641510829401,0.55877844,3420.8,3420.7,2.464772]
[1641510830000,1.18324395,3420.8,3420.7,2.00479]
[1641510830199,1.33646195,3420.8,3420.7,2.00479]
[1641510830601,1.18324395,3420.8,3420.7,2.464772]
[1641510831103,1.53607679,3420.8,3420.7,2.464772]
[1641510831901,2.23319479,3420.8,3420.7,2.00479]
[1641510832105,2.23319479,3420.8,3420.2,0.74113298]
[1641510832304,0.2059456,3420.3,3420.2,0.74113298]
[1641510832702,0.3591636,3420.3,3420.2,0.74113298]
[1641510833305,0.3591636,3420.3,3419.9,0.74113298]
[1641510833505,0.2059456,3420.0,3419.9,0.74113298]
[1641510833705,0.9603456,3420.0,3419.9,0.74113298]
[1641510833903,1.1135636,3420.0,3419.9,0.74113298]
[1641510834703,1.1135636,3420.0,3419.4,2.00479]
[1641510834704,1.1135636,3420.0,3419.7,0.74113298]
[1641510834905,0.9603456,3420.0,3419.8,0.459982]
[1641510836209,0.153218,3419.9,3419.7,0.74113298]
[1641510836406,0.7544,3420.0,3419.7,0.74113298]
[1641510837307,0.3591636,3419.9,3419.7,0.74113298]
[1641510837807,0.3591636,3419.9,3419.6,1.20538]
[1641510838007,0.2059456,3419.9,3419.8,0.459982]
[1641510838207,0.3591636,3419.9,3419.6,1.20538]
[1641510838407,0.153218,3419.9,3419.6,1.20538]
[1641510838608,0.3591636,3419.9,3419.6,1.20538]
[1641510838812,0.2059456,3419.9,3419.7,0.459982]
[1641510839310,0.153218,3419.8,3419.6,0.74113298]
[1641510839511,0.2059456,3419.9,3419.6,0.74113298]
[1641510839711,0.2059456,3419.9,3419.7,0.459982]
[1641510840412,1.46180024,3420.1,3419.7,2.1512184]
[1641510840813,1.46180024,3420.1,3419.8,4.678636]
[1641510841014,1.46169767,3420.4,3419.9,0.857164]
[1641510841215,0.2059456,3420.6,3419.9,0.857164]
[1641510841415,0.2059456,3420.6,3420.0,4.678157]
[1641510841614,0.2059456,3420.6,3420.1,0.397182]
[1641510841815,0.2059456,3420.6,3420.3,2.00479]
[1641510842019,0.2059456,3420.6,3420.4,0.844454]
[1641510843115,0.153218,3420.5,3420.4,0.384472]
[1641510843314,0.2059456,3420.6,3420.4,0.844454]
[1641510843516,0.2059456,3420.6,3420.4,0.384472]
[1641510844018,0.153218,3420.5,3420.4,0.384472]
[1641510844718,0.2059456,3420.6,3420.4,0.844454]
[1641510844919,0.153218,3420.5,3420.4,0.384472]
[1641510845419,0.2059456,3420.6,3420.4,0.384472]
[1641510846623,0.2059456,3420.6,3420.5,0.459982]
[1641510847122,0.2059456,3420.6,3420.4,0.384472]
[1641510847424,0.153218,3420.5,3420.4,0.384472]
[1641510848023,0.2059456,3420.6,3420.4,0.384472]
[1641510849327,0.2059456,3420.6,3420.4,0.844454]
[1641510849529,0.3591636,3420.6,3420.4,0.844454]
[1641510849828,0.3591636,3420.6,3420.4,0.384472]
[1641510850728,1.5,3420.5,3419.1,0.74113298]
[1641510850928,0.2059456,3419.2,3419.1,0.74113298]
[1641510851130,0.9388456,3419.2,3419.1,1.98276898]
[1641510851530,0.9388456,3419.2,3419.1,5.921161]
[1641510851730,0.9388456,3419.2,3419.1,5.063997]
[1641510851932,0.9388456,3419.2,3419.1,0.844454]
[1641510853631,0.9388456,3419.2,3419.1,0.384472]
[1641510854932,1.0920636,3419.2,3418.8,2.00479]
[1641510855334,0.2059456,3418.9,3418.8,2.00479]
[1641510855733,0.3591636,3418.9,3418.8,2.00479]
[1641510856834,0.3591636,3418.9,3418.5,2.00479]
[1641510857035,0.153218,3418.9,3418.5,2.00479]
[1641510857233,0.2059456,3418.6,3418.5,2.00479]
[1641510857434,0.3591636,3418.6,3418.5,2.00479]
[1641510858236,0.2059456,3418.6,3418.5,2.464772]
[1641510858435,0.2059456,3418.8,3418.5,2.00479]
[1641510858634,0.2059456,3418.8,3418.5,3.2988444]
[1641510858837,2.2107356,3419.1,3418.6,0.13122237]
[1641510859035,2.00479,3419.1,3418.7,0.397182]
[1641510859437,2.00479,3419.1,3418.8,4.679867]
[1641510859739,2.00479,3419.1,3418.9,0.459982]
[1641510859939,0.2059456,3419.7,3419.0,5.2940544]
[1641510860138,0.2059456,3419.7,3419.5,2.00479]
[1641510860335,0.2059456,3419.7,3419.5,3.232662]
[1641510860537,2.2107356,3420.3,3419.6,6.2190684]
[1641510860737,2.2107356,3420.3,3419.7,4.0]
[1641510860940,2.2107356,3420.3,3419.7,0.397182]
[1641510861140,2.2107356,3420.3,3419.8,4.678362]
[1641510861540,2.2107356,3420.3,3419.9,0.397182]
[1641510861838,2.00479,3420.3,3419.9,0.397182]
[1641510863940,0.2059456,3420.2,3419.9,0.397182]
[1641510864140,0.153218,3420.1,3419.9,0.397182]
[1641510864340,2.00479,3420.3,3420.0,0.459982]
[1641510864540,0.2059456,3420.2,3419.6,2.5409548]
[1641510864739,0.2059456,3420.0,3419.6,2.9381368]
[1641510864943,2.00479,3420.3,3419.7,0.13123683]
[1641510865141,0.2059456,3420.1,3419.7,0.13123683]
[1641510865341,0.2059456,3420.1,3419.7,4.80987283]
[1641510865542,2.00479,3420.3,3419.7,4.80987283]
[1641510865741,2.00479,3420.3,3419.7,4.678636]
[1641510865941,2.00479,3420.3,3419.6,2.9381368]
[1641510866143,0.33879795,3420.2,3419.8,0.46415904]
[1641510866441,0.2059456,3419.9,3419.8,0.46415904]
[1641510866642,0.3591636,3419.9,3419.8,0.46415904]
[1641510867042,0.2059456,3419.9,3419.8,0.459982]
[1641510867341,0.2059456,3419.9,3419.7,0.46415904]
[1641510868042,2.2107356,3420.3,3419.8,0.459982]
[1641510868241,0.97729835,3420.2,3419.9,0.397182]
[1641510868843,0.97729835,3420.2,3420.0,0.59129798]
[1641510869043,0.97729835,3420.2,3420.1,0.397182]
[1641510869644,2.00479,3420.3,3420.1,0.397182]
[1641510870247,2.00479,3420.3,3420.2,0.844454]
[1641510870444,2.00479,3420.3,3420.2,1.465754]
[1641510870644,2.00479,3420.3,3420.2,1.92991304]
[1641510872044,2.00479,3420.3,3420.2,2.06132948]
[1641510872847,2.158008,3420.3,3420.2,1.08545904]
[1641510873044,2.158008,3420.3,3420.2,0.46415904]
[1641510873245,2.00479,3420.3,3420.2,0.46415904]
[1641510873545,2.00479,3420.3,3420.2,0.92414104]
[1641510873947,2.34557484,3420.3,3420.2,0.92414104]
[1641510874145,2.34557484,3420.3,3420.2,1.0556306]
[1641510874548,2.49879284,3420.3,3420.2,0.5956486]
[1641510874747,2.34557484,3420.3,3420.2,1.0556306]
[1641510874946,2.34557484,3420.3,3420.2,0.5956486]
[1641510875350,2.34557484,3420.3,3420.2,0.46415904]
[1641510875749,2.34557484,3420.3,3420.2,0.59565132]
[1641510875949,2.34557484,3420.3,3420.2,1.05563332]
[1641510876549,2.34557484,3420.3,3420.2,0.59565132]
[1641510876750,2.55152044,3420.3,3420.2,0.59565132]
[1641510876950,2.55152044,3420.3,3420.2,1.05563332]
[1641510877650,2.34557484,3420.3,3420.2,1.05563332]
[1641510878250,3.32287319,3420.3,3420.2,1.05563332]
[1641510878450,3.47609119,3420.3,3420.2,0.59565132]
[1641510879352,3.47609119,3420.3,3420.2,1.05563332]
[1641510879353,2.34557484,3420.3,3420.2,1.05563332]
[1641510880051,2.49879284,3420.3,3420.2,0.59565132]
[1641510880558,2.34557484,3420.3,3420.2,1.05563332]
[1641510881756,2.49879284,3420.3,3420.2,0.59565132]
[1641510883160,2.34557484,3420.3,3420.2,1.05563332]
[1641510883461,2.00479,3420.3,3420.2,1.05563332]
[1641510883862,2.158008,3420.3,3420.2,0.59565132]
[1641510886062,2.00479,3420.3,3420.2,1.05563332]
[1641510886261,2.158008,3420.3,3420.2,0.59565132]
[1641510888064,2.49890962,3420.3,3420.2,0.59565132]
[1641510890267,2.158008,3420.3,3420.2,0.59565132]
[1641510891770,2.4995649,3420.3,3420.2,0.59565132]
[1641510892570,2.3463469,3420.3,3420.2,1.05563332]
[1641510893475,2.4995649,3420.3,3420.2,0.59565132]
[1641510896974,2.3463469,3420.3,3420.2,1.05563332]
[1641510897576,2.3463469,3420.3,3420.2,1.45281532]
[1641510897775,2.00479,3420.3,3420.2,0.98865628]
[1641510898483,2.00479,3420.7,3420.2,14.14645628]
[1641510898683,0.97729835,3421.2,3420.3,1.2940544]
[1641510898886,2.00479,3421.1,3420.3,3.2988444]
[1641510899083,2.00479,3421.1,3420.4,5.074518]
[1641510899285,2.00479,3421.1,3420.4,6.76715513]
[1641510899486,0.97729835,3421.2,3420.8,4.0]
[1641510899687,0.97729835,3421.2,3420.9,2.0757084]
[1641510899886,0.97729835,3421.8,3421.0,0.459982]
[1641510900287,0.97729835,3421.8,3421.1,5.99586338]
[1641510900588,0.97729835,3421.8,3421.1,6.12735566]
[1641510900787,0.97729835,3421.8,3421.2,0.6749344]
[1641510901087,0.38922702,3421.2,3421.1,0.92237038]
[1641510901289,0.97729835,3421.8,3421.1,3.30655719]
[1641510901493,0.97729835,3421.7,3421.3,4.676311]
[1641510901788,0.97729835,3421.7,3421.1,7.52336419]
[1641510901988,0.97729835,3421.7,3421.3,4.676311]
[1641510902389,0.97729835,3421.7,3421.2,4.676448]
[1641510902590,0.97729835,3421.7,3421.4,4.676311]
[1641510902789,0.97729835,3421.7,3421.5,0.857164]
[1641510902990,0.54439009,3421.9,3421.6,0.384472]
[1641510902991,1.31574284,3421.8,3421.6,0.384472]
[1641510903188,1.31574284,3421.8,3421.7,0.397182]
[1641510903891,1.46896084,3421.8,3421.7,0.397182]
[1641510904692,1.31574284,3421.8,3421.7,0.397182]
[1641510904892,1.46896084,3421.8,3421.7,0.397182]
[1641510905094,0.49166249,3421.8,3421.7,0.86124077]
[1641510905492,0.33844449,3421.8,3421.7,0.86124077]
[1641510905693,0.49166249,3421.8,3421.7,0.86124077]
[1641510905993,0.33844449,3421.8,3421.7,1.32122277]
[1641510906294,1.31574284,3421.8,3421.7,1.32122277]
[1641510907493,1.46896084,3421.8,3421.7,0.86124077]
[1641510907994,1.46896084,3421.8,3421.7,0.46405877]
[1641510908194,1.46896084,3421.8,3421.7,5.877e-05]
[1641510908394,1.46896084,3421.8,3421.0,1.84812919]
[1641510908595,0.2059456,3421.1,3421.0,1.84812919]
[1641510908793,0.7742456,3421.1,3421.0,2.30811119]
[1641510908993,2.7790356,3421.1,3421.0,2.30811119]
[1641510909993,2.7790356,3421.1,3421.0,0.459982]
[1641510911395,2.57309,3421.1,3421.0,0.459982]
[1641510912498,2.7790356,3421.1,3420.9,0.397182]
[1641510912696,2.57309,3421.1,3421.0,0.459982]
[1641510912899,2.7790356,3421.1,3420.9,0.397182]
[1641510913801,2.7790356,3421.1,3421.0,0.459982]
[1641510914000,2.7790356,3421.1,3420.9,0.397182]
[1641510914200,0.153218,3421.0,3420.6,1.84812919]
[1641510914403,0.2059456,3420.7,3420.6,1.84812919]
[1641510914601,0.6031276,3420.7,3420.6,1.84812919]
[1641510915002,2.7611356,3420.7,3420.6,1.84812919]
[1641510915602,2.7611356,3420.7,3420.3,2.46676028]
[1641510915802,2.55519,3420.7,3420.3,2.46676028]
[1641510916003,0.2059456,3420.4,3420.3,2.46676028]
[1641510916202,1.4313456,3420.4,3420.1,1.755419]
[1641510916405,0.2059456,3420.2,3420.1,1.755419]
[1641510916804,0.6031276,3420.2,3420.0,2.4773081]
[1641510917009,0.153218,3420.1,3419.9,2.4773081]
[1641510917907,0.2059456,3420.0,3419.9,2.4773081]
[1641510918104,0.2059456,3420.0,3419.9,2.9372901]
[1641510918305,0.6031276,3420.0,3419.9,2.9372901]
[1641510918505,0.7563456,3420.0,3419.9,2.4773081]
[1641510918705,0.7563456,3420.0,3419.6,2.4773081]
[1641510919806,0.7563456,3420.0,3419.7,1.60253463]
[1641510920010,0.6031276,3420.0,3419.8,0.459982]
[1641510920406,0.7563456,3420.0,3419.8,0.459982]
[1641510920807,0.6031276,3420.0,3419.8,0.459982]
[1641510921008,0.6031276,3420.0,3419.6,2.8744901]
[1641510921407,0.6031276,3420.0,3419.7,1.73416774]
[1641510921608,0.153218,3419.9,3419.7,1.73416774]
[1641510922211,0.153218,3419.9,3419.7,0.13161983]
[1641510922410,0.6031276,3420.0,3419.8,0.459982]
[1641510922709,0.7563456,3420.0,3419.8,0.13161983]
[1641510922910,0.7563456,3420.0,3419.9,0.13161983]
[1641510923509,0.7563456,3420.0,3419.7,1.73425676]
[1641510923709,0.7563456,3420.0,3419.9,0.13161983]
[1641510924109,0.7563456,3420.0,3419.8,1.98809679]
[1641510924309,0.7563456,3420.0,3419.5,2.4773081]
[1641510924310,1.5,3419.9,3419.5,2.4773081]
[1641510924509,0.2059456,3419.6,3419.3,3.08695613]
[1641510924709,0.2059456,3419.4,3419.1,1.755419]
[1641510924911,0.7286,3419.6,3419.1,1.755419]
[1641510924912,0.2059456,3419.2,3419.1,1.755419]
[1641510925110,4.2155256,3419.2,3419.1,4.84976013]
[1641510925510,4.3687436,3419.2,3419.1,4.84976013]
[1641510926710,4.3687436,3419.2,3419.1,1.755419]
[1641510927110,4.3687436,3419.2,3418.0,1.46146055]
[1641510927313,0.2059456,3418.6,3418.0,1.46146055]
[1641510927612,0.7983456,3418.6,3418.1,2.38400625]
[1641510927810,0.5924,3418.6,3418.2,1.46137726]
[1641510928310,0.5924,3418.6,3418.3,1.99953425]
[1641510928512,0.5924,3418.6,3418.4,0.459982]
[1641510928911,0.5924,3418.6,3418.5,1.60235225]
[1641510929110,0.5924,3418.6,3418.4,0.459982]
[1641510929611,0.153218,3418.5,3418.3,0.397182]